[Event "*** Titled Tuesday Blitz"]
[Site "Chess.com"]
[Date "2021.03.02"]
[Round "1"]
[White "andrewtnb"]
[Black "DamianoLew95"]
[Result "1/2-1/2"]
[WhiteElo "2309"]
[BlackElo "2597"]
[TimeControl "180+1"]
[EndTime "10:08:20 PST"]
[Termination "Game drawn by repetition"]

1. d4 {[%clk 0:02:57]} 1... d5 {[%clk 0:02:53.1]} 2. Nf3 {[%clk 0:02:55.9]} 2...
Nf6 {[%clk 0:02:52]} 3. c4 {[%clk 0:02:51.3]} 3... c6 {[%clk 0:02:50.1]} 4. cxd5
{[%clk 0:02:50.6]} 4... cxd5 {[%clk 0:02:49.8]} 5. Nc3 {[%clk 0:02:51]} 5... Nc6
{[%clk 0:02:49.6]} 6. Bf4 {[%clk 0:02:50.8]} 6... a6 {[%clk 0:02:47.9]} 7. Rc1
{[%clk 0:02:47.1]} 7... Bf5 {[%clk 0:02:46.1]} 8. e3 {[%clk 0:02:46.8]} 8... Rc8
{[%clk 0:02:43.6]} 9. Be2 {[%clk 0:02:46.7]} 9... e6 {[%clk 0:02:26.9]} 10. O-O
{[%clk 0:02:46.1]} 10... Bd6 {[%clk 0:02:26.1]} 11. Bg3 {[%clk 0:02:44.9]} 11...
O-O {[%clk 0:02:25.5]} 12. Na4 {[%clk 0:02:42.4]} 12... Bxg3 {[%clk 0:02:22.5]}
13. hxg3 {[%clk 0:02:41.9]} 13... Qe7 {[%clk 0:02:04.4]} 14. Nc5 {[%clk
0:02:40.6]} 14... Nd7 {[%clk 0:01:56.9]} 15. Nxd7 {[%clk 0:02:37.1]} 15... Qxd7
{[%clk 0:01:55.8]} 16. Qd2 {[%clk 0:02:37.1]} 16... f6 {[%clk 0:01:46.4]} 17.
Rc5 {[%clk 0:02:29.1]} 17... Ne7 {[%clk 0:01:41.6]} 18. Rfc1 {[%clk 0:02:28.7]}
18... Rxc5 {[%clk 0:01:41.3]} 19. Rxc5 {[%clk 0:02:20.1]} 19... Rc8 {[%clk
0:01:39.3]} 20. Qc3 {[%clk 0:02:11.7]} 20... Rxc5 {[%clk 0:01:36]} 21. Qxc5
{[%clk 0:02:08.8]} 21... Kf7 {[%clk 0:01:35.6]} 22. a3 {[%clk 0:01:25.3]} 22...
Qc6 {[%clk 0:01:31.9]} 23. b4 {[%clk 0:01:21.5]} 23... Qxc5 {[%clk 0:01:24.1]}
24. dxc5 {[%clk 0:01:21.3]} 24... e5 {[%clk 0:01:22.5]} 25. a4 {[%clk
0:01:13.6]} 25... Bc2 {[%clk 0:01:15.2]} 26. b5 {[%clk 0:01:02.7]} 26... Bxa4
{[%clk 0:01:05.8]} 27. bxa6 {[%clk 0:00:48.7]} 27... bxa6 {[%clk 0:01:05.5]} 28.
Bxa6 {[%clk 0:00:49.3]} 28... Ke8 {[%clk 0:01:02.3]} 29. e4 {[%clk 0:00:37.7]}
29... d4 {[%clk 0:00:52.8]} 30. Nd2 {[%clk 0:00:37.2]} 30... Kd7 {[%clk
0:00:52.6]} 31. Bb7 {[%clk 0:00:29.5]} 31... Kc7 {[%clk 0:00:48.6]} 32. Bd5
{[%clk 0:00:24.7]} 32... Bc6 {[%clk 0:00:44.7]} 33. Be6 {[%clk 0:00:18.7]} 33...
Be8 {[%clk 0:00:43]} 34. Bd5 {[%clk 0:00:15.4]} 34... Bb5 {[%clk 0:00:26.5]} 35.
f3 {[%clk 0:00:15.4]} 35... Nc6 {[%clk 0:00:16.2]} 36. Kf2 {[%clk 0:00:15]}
36... Nd8 {[%clk 0:00:16]} 37. f4 {[%clk 0:00:14.5]} 37... exf4 {[%clk
0:00:07.7]} 38. gxf4 {[%clk 0:00:13.8]} 38... Nb7 {[%clk 0:00:08.2]} 39. Bxb7
{[%clk 0:00:13.8]} 39... Kxb7 {[%clk 0:00:07.9]} 40. Nf3 {[%clk 0:00:13.8]}
40... d3 {[%clk 0:00:08.2]} 41. Ke3 {[%clk 0:00:14.1]} 41... Kc6 {[%clk
0:00:08.1]} 42. Nd4+ {[%clk 0:00:13.3]} 42... Kxc5 {[%clk 0:00:07.8]} 43. Nxb5
{[%clk 0:00:05.6]} 43... Kxb5 {[%clk 0:00:08.7]} 44. Kxd3 {[%clk 0:00:06.4]}
44... Kc5 {[%clk 0:00:09.1]} 45. g4 {[%clk 0:00:06.2]} 45... h6 {[%clk
0:00:06.8]} 46. f5 {[%clk 0:00:05]} 46... Kc6 {[%clk 0:00:06.4]} 47. Kc4 {[%clk
0:00:04.8]} 47... Kd6 {[%clk 0:00:06]} 48. Kd4 {[%clk 0:00:05]} 48... Ke7 {[%clk
0:00:06]} 49. e5 {[%clk 0:00:04.8]} 49... fxe5+ {[%clk 0:00:05.6]} 50. Kxe5
{[%clk 0:00:04.8]} 50... Kf7 {[%clk 0:00:06]} 51. Ke4 {[%clk 0:00:04.4]} 51...
Kf8 {[%clk 0:00:05.9]} 52. Ke5 {[%clk 0:00:04.3]} 52... Ke7 {[%clk 0:00:06.3]}
53. Ke4 {[%clk 0:00:03.6]} 53... Kf6 {[%clk 0:00:06.3]} 54. Kf4 {[%clk
0:00:03.8]} 54... Kf7 {[%clk 0:00:06.8]} 55. Ke5 {[%clk 0:00:03.7]} 55... Ke7
{[%clk 0:00:06.5]} 56. Ke4 {[%clk 0:00:03.9]} 56... Kf6 {[%clk 0:00:06.7]} 57.
Kf4 {[%clk 0:00:04.3]} 57... Kf7 {[%clk 0:00:06.6]} 58. Ke5 {[%clk 0:00:04.4]}
58... Ke7 {[%clk 0:00:06.9]} 1/2-1/2

[Event "*** Titled Tuesday Blitz"]
[Site "Chess.com"]
[Date "2021.03.02"]
[Round "1"]
[White "barbara25"]
[Black "NicoChasin"]
[Result "0-1"]
[WhiteElo "2221"]
[BlackElo "2539"]
[TimeControl "180+1"]
[EndTime "10:08:21 PST"]
[Termination "NicoChasin won by resignation"]

1. e4 {[%clk 0:03:00.9]} 1... c5 {[%clk 0:02:50]} 2. Nf3 {[%clk 0:03:00.1]} 2...
e6 {[%clk 0:02:48.4]} 3. g3 {[%clk 0:02:59.5]} 3... Nc6 {[%clk 0:02:44.3]} 4.
Bg2 {[%clk 0:02:59.6]} 4... g6 {[%clk 0:02:44.5]} 5. O-O {[%clk 0:02:59.2]} 5...
Bg7 {[%clk 0:02:41.7]} 6. d3 {[%clk 0:02:59.9]} 6... Nge7 {[%clk 0:02:41.3]} 7.
Re1 {[%clk 0:03:00.6]} 7... d6 {[%clk 0:02:35.3]} 8. Nbd2 {[%clk 0:03:01]} 8...
O-O {[%clk 0:02:30.1]} 9. Nf1 {[%clk 0:03:01.6]} 9... f5 {[%clk 0:02:17.3]} 10.
exf5 {[%clk 0:03:01.3]} 10... Nxf5 {[%clk 0:02:16.8]} 11. c3 {[%clk 0:02:59.9]}
11... Bd7 {[%clk 0:02:10.4]} 12. Bg5 {[%clk 0:02:58.2]} 12... Qb6 {[%clk
0:02:09]} 13. Qd2 {[%clk 0:02:56.2]} 13... h6 {[%clk 0:02:08.3]} 14. Bf4 {[%clk
0:02:54.5]} 14... g5 {[%clk 0:02:08.4]} 15. Be3 {[%clk 0:02:49]} 15... g4 {[%clk
0:02:06.5]} 16. Nh4 {[%clk 0:02:47.3]} 16... Nxh4 {[%clk 0:02:05.6]} 17. gxh4
{[%clk 0:02:46.9]} 17... h5 {[%clk 0:02:05.8]} 18. Bh6 {[%clk 0:02:44.4]} 18...
Bf6 {[%clk 0:02:01]} 19. Bg5 {[%clk 0:02:43.1]} 19... Qd8 {[%clk 0:01:54.2]} 20.
Bxf6 {[%clk 0:02:39.2]} 20... Qxf6 {[%clk 0:01:53.1]} 21. Ng3 {[%clk 0:02:39.8]}
21... Qxh4 {[%clk 0:01:52.2]} 22. Qh6 {[%clk 0:02:38.5]} 22... Rf6 {[%clk
0:01:50.7]} 23. Qxh5 {[%clk 0:02:37.4]} 23... Qxh5 {[%clk 0:01:50.9]} 24. Nxh5
{[%clk 0:02:37.6]} 24... Rh6 {[%clk 0:01:51.4]} 25. Ng3 {[%clk 0:02:37.6]} 25...
Kg7 {[%clk 0:01:51.4]} 26. Re4 {[%clk 0:02:37.5]} 26... e5 {[%clk 0:01:50.2]}
27. d4 {[%clk 0:02:35.8]} 27... cxd4 {[%clk 0:01:49.5]} 28. cxd4 {[%clk
0:02:35.7]} 28... Nxd4 {[%clk 0:01:49.9]} 29. Rd1 {[%clk 0:02:32.6]} 29... Kf6
{[%clk 0:01:43.7]} 30. Ree1 {[%clk 0:02:29.8]} 30... Rah8 {[%clk 0:01:42.1]} 31.
Ne4+ {[%clk 0:02:25.9]} 31... Ke7 {[%clk 0:01:41.2]} 32. Ng3 {[%clk 0:02:22.6]}
32... Kd8 {[%clk 0:01:39.2]} 33. Bxb7 {[%clk 0:02:07.7]} 33... Rxh2 {[%clk
0:01:34.7]} 34. Re3 {[%clk 0:01:55.6]} 34... R2h6 {[%clk 0:01:25.8]} 35. Bg2
{[%clk 0:01:54.6]} 35... Rf8 {[%clk 0:01:19.8]} 36. Ra3 {[%clk 0:01:53.9]} 36...
Rhf6 {[%clk 0:01:15.8]} 37. Rd2 {[%clk 0:01:51.3]} 37... Nb5 {[%clk 0:01:10.1]}
38. Ra5 {[%clk 0:01:50.4]} 38... Rf4 {[%clk 0:01:09.5]} 39. a4 {[%clk
0:01:49.2]} 39... Rd4 {[%clk 0:01:03.7]} 40. Rxd4 {[%clk 0:01:46.4]} 40... Nxd4
{[%clk 0:01:04.6]} 41. Rxa7 {[%clk 0:01:43.6]} 41... Ke7 {[%clk 0:01:05.1]} 42.
b4 {[%clk 0:01:40.2]} 42... Rc8 {[%clk 0:01:00.2]} 43. b5 {[%clk 0:01:38.4]}
43... Rc1+ {[%clk 0:00:59.9]} 44. Bf1 {[%clk 0:01:32.5]} 44... Ke6 {[%clk
0:00:49.7]} 45. Kg2 {[%clk 0:01:31.4]} 45... Ra1 {[%clk 0:00:47.6]} 46. Ne4
{[%clk 0:01:27.1]} 46... Bxb5 {[%clk 0:00:38.8]} 47. Bxb5 {[%clk 0:01:25]} 47...
Nxb5 {[%clk 0:00:39.2]} 48. Ra6 {[%clk 0:01:25.3]} 48... Nd4 {[%clk 0:00:31.3]}
49. Nxd6 {[%clk 0:01:21.2]} 49... Kd5 {[%clk 0:00:29.8]} 50. Nb5 {[%clk
0:01:21.2]} 50... Nf5 {[%clk 0:00:22.1]} 51. Rf6 {[%clk 0:01:20.1]} 51... Ke4
{[%clk 0:00:19.2]} 52. Nc3+ {[%clk 0:01:18.9]} 52... Kf4 {[%clk 0:00:19.5]} 53.
Ne2+ {[%clk 0:01:18.6]} 53... Kg5 {[%clk 0:00:19.7]} 54. Re6 {[%clk 0:01:17.6]}
54... Rxa4 {[%clk 0:00:16.9]} 55. Rxe5 {[%clk 0:01:17.8]} 55... Kf6 {[%clk
0:00:15.5]} 56. Rc5 {[%clk 0:01:15.4]} 56... Ke6 {[%clk 0:00:15.2]} 57. Nd4+
{[%clk 0:01:11.4]} 57... Rxd4 {[%clk 0:00:14.5]} 58. Rc6+ {[%clk 0:01:11.1]}
58... Ke5 {[%clk 0:00:14.5]} 59. Rc5+ {[%clk 0:01:11.5]} 59... Kf4 {[%clk
0:00:14.6]} 60. Ra5 {[%clk 0:01:09.8]} 60... Rd2 {[%clk 0:00:14.8]} 61. Ra4+
{[%clk 0:01:09.7]} 61... Kg5 {[%clk 0:00:15.3]} 62. Kf1 {[%clk 0:01:07.1]} 62...
Rb2 {[%clk 0:00:15.2]} 63. Ra5 {[%clk 0:01:06.5]} 63... Kf4 {[%clk 0:00:15.1]}
64. Ra4+ {[%clk 0:01:06.7]} 64... Ke5 {[%clk 0:00:15.3]} 65. Ra5+ {[%clk
0:01:06.6]} 65... Ke4 {[%clk 0:00:15.5]} 66. Ra4+ {[%clk 0:01:06.8]} 66... Nd4
{[%clk 0:00:15.7]} 67. Kg2 {[%clk 0:01:04.7]} 67... Rb3 {[%clk 0:00:15.5]} 68.
Ra8 {[%clk 0:01:03.7]} 68... Rd3 {[%clk 0:00:16]} 69. Rg8 {[%clk 0:01:03.2]}
69... Kf4 {[%clk 0:00:16.3]} 70. Rd8 {[%clk 0:01:02.6]} 70... Rd2 {[%clk
0:00:15.6]} 71. Rf8+ {[%clk 0:01:01]} 71... Nf5 {[%clk 0:00:15.9]} 72. Kg1
{[%clk 0:00:59]} 72... Rd5 {[%clk 0:00:15]} 73. Kg2 {[%clk 0:00:59.1]} 73... Re5
{[%clk 0:00:14.5]} 74. Kf1 {[%clk 0:00:57.3]} 74... Kf3 {[%clk 0:00:14.3]} 75.
Rf7 {[%clk 0:00:55.5]} 75... Rb5 {[%clk 0:00:12.9]} 76. Kg1 {[%clk 0:00:52.6]}
76... Rb1+ {[%clk 0:00:10.8]} 77. Kh2 {[%clk 0:00:52.8]} 77... Kf4 {[%clk
0:00:10.9]} 78. Kg2 {[%clk 0:00:52.6]} 78... Rb2 {[%clk 0:00:11.2]} 79. Kf1
{[%clk 0:00:51.7]} 79... Ke4 {[%clk 0:00:11.7]} 80. Kg2 {[%clk 0:00:51.3]} 80...
g3 {[%clk 0:00:11.3]} 81. Re7+ {[%clk 0:00:51.1]} 81... Kf4 {[%clk 0:00:11.6]}
82. Rf7 {[%clk 0:00:50.4]} 82... Rxf2+ {[%clk 0:00:11.8]} 83. Kg1 {[%clk
0:00:50]} 83... Rb2 {[%clk 0:00:10.8]} 0-1

[Event "*** Titled Tuesday Blitz"]
[Site "Chess.com"]
[Date "2021.03.02"]
[Round "1"]
[White "ram1zan"]
[Black "atalz0"]
[Result "1-0"]
[WhiteElo "2964"]
[BlackElo "2468"]
[TimeControl "180+1"]
[EndTime "10:08:24 PST"]
[Termination "ram1zan won by resignation"]

1. e4 {[%clk 0:02:57.8]} 1... d5 {[%clk 0:02:59.6]} 2. exd5 {[%clk 0:02:56.9]}
2... Nf6 {[%clk 0:02:59.5]} 3. d4 {[%clk 0:02:56.5]} 3... Nxd5 {[%clk
0:02:59.6]} 4. Nf3 {[%clk 0:02:56.4]} 4... Bg4 {[%clk 0:02:59]} 5. h3 {[%clk
0:02:51.7]} 5... Bh5 {[%clk 0:02:58.9]} 6. c4 {[%clk 0:02:31.8]} 6... Nb6 {[%clk
0:02:58.5]} 7. c5 {[%clk 0:02:22.8]} 7... N6d7 {[%clk 0:02:55.5]} 8. Qb3 {[%clk
0:02:18.9]} 8... Bxf3 {[%clk 0:02:54.6]} 9. Qxf3 {[%clk 0:02:18.1]} 9... Nc6
{[%clk 0:02:55.2]} 10. Be3 {[%clk 0:02:12.6]} 10... e5 {[%clk 0:02:53.5]} 11.
Bc4 {[%clk 0:02:03.3]} 11... Qf6 {[%clk 0:02:46.1]} 12. Qxf6 {[%clk 0:01:26.1]}
12... Nxf6 {[%clk 0:02:47]} 13. d5 {[%clk 0:01:19.7]} 13... Nd4 {[%clk
0:02:44.6]} 14. Bxd4 {[%clk 0:01:10.7]} 14... exd4 {[%clk 0:02:45.5]} 15. c6
{[%clk 0:01:04.5]} 15... O-O-O {[%clk 0:02:38.2]} 16. cxb7+ {[%clk 0:01:03.9]}
16... Kxb7 {[%clk 0:02:39.1]} 17. Nd2 {[%clk 0:01:03.9]} 17... Nxd5 {[%clk
0:02:25.2]} 18. O-O-O {[%clk 0:01:04.3]} 18... c5 {[%clk 0:02:03.1]} 19. Rhe1
{[%clk 0:00:59]} 19... g6 {[%clk 0:01:53.7]} 20. Re5 {[%clk 0:00:55.2]} 20...
Nb6 {[%clk 0:01:39.7]} 21. Bxf7 {[%clk 0:00:53]} 21... Bd6 {[%clk 0:01:38]} 22.
Re2 {[%clk 0:00:50.6]} 22... Rhf8 {[%clk 0:01:38]} 23. Bc4 {[%clk 0:00:51]}
23... Bf4 {[%clk 0:01:29]} 24. Re7+ {[%clk 0:00:33.9]} 24... Kc6 {[%clk
0:01:17.8]} 25. Be2 {[%clk 0:00:33]} 25... Rd7 {[%clk 0:01:11.1]} 26. Bf3+
{[%clk 0:00:29.5]} 26... Kd6 {[%clk 0:01:10.3]} 27. Rxd7+ {[%clk 0:00:29]} 27...
Nxd7 {[%clk 0:01:08.9]} 28. Be4 {[%clk 0:00:15.9]} 28... Ne5 {[%clk 0:01:03.4]}
29. Kc2 {[%clk 0:00:15.9]} 29... c4 {[%clk 0:00:51.3]} 30. b3 {[%clk 0:00:07.5]}
30... d3+ {[%clk 0:00:30.7]} 31. Kc3 {[%clk 0:00:05.3]} 31... Bxd2+ {[%clk
0:00:30.5]} 32. Rxd2 {[%clk 0:00:05.6]} 32... Rc8 {[%clk 0:00:29.8]} 33. f4
{[%clk 0:00:03]} 33... cxb3+ {[%clk 0:00:28.6]} 34. Kxb3 {[%clk 0:00:03.9]}
34... Nc4 {[%clk 0:00:23.7]} 35. Rxd3+ {[%clk 0:00:04.3]} 35... Ke7 {[%clk
0:00:24]} 36. Bf3 {[%clk 0:00:01.5]} 36... Nd6 {[%clk 0:00:15.7]} 37. Re3+
{[%clk 0:00:01.6]} 37... Kf6 {[%clk 0:00:15.3]} 38. Rd3 {[%clk 0:00:02.5]} 38...
Nf5 {[%clk 0:00:15.2]} 39. g4 {[%clk 0:00:02.8]} 39... Rb8+ {[%clk 0:00:15.4]}
40. Kc2 {[%clk 0:00:02.9]} 40... Nh4 {[%clk 0:00:15.4]} 41. Be4 {[%clk
0:00:02.5]} 41... Rc8+ {[%clk 0:00:15.2]} 42. Kd2 {[%clk 0:00:02.7]} 42... Re8
{[%clk 0:00:15]} 43. Rd4 {[%clk 0:00:03.2]} 43... h5 {[%clk 0:00:11.8]} 44. Kd3
{[%clk 0:00:03.3]} 44... hxg4 {[%clk 0:00:11.4]} 45. hxg4 {[%clk 0:00:04.2]}
45... Rb8 {[%clk 0:00:11.4]} 46. Rd6+ {[%clk 0:00:04.7]} 46... Ke7 {[%clk
0:00:10.7]} 47. Ra6 {[%clk 0:00:05.1]} 47... Rd8+ {[%clk 0:00:06.5]} 48. Ke3
{[%clk 0:00:05.7]} 48... Rd7 {[%clk 0:00:07.4]} 49. g5 {[%clk 0:00:06.2]} 49...
Kf7 {[%clk 0:00:06.1]} 50. Rf6+ {[%clk 0:00:06.8]} 50... Kg7 {[%clk 0:00:06.1]}
51. Ra6 {[%clk 0:00:07.7]} 51... Re7 {[%clk 0:00:06.5]} 52. Kd4 {[%clk
0:00:08.4]} 52... Rd7+ {[%clk 0:00:05.5]} 53. Kc5 {[%clk 0:00:08.8]} 53... Re7
{[%clk 0:00:05.9]} 54. Ra4 {[%clk 0:00:09.4]} 54... Nf5 {[%clk 0:00:06.2]} 55.
Bxf5 {[%clk 0:00:09.8]} 55... gxf5 {[%clk 0:00:07.1]} 56. Kd5 {[%clk 0:00:10.6]}
56... Kg6 {[%clk 0:00:05.4]} 57. Ra6+ {[%clk 0:00:08.2]} 57... Kh5 {[%clk
0:00:05.7]} 58. Re6 {[%clk 0:00:08.5]} 58... Kg4 {[%clk 0:00:05.5]} 59. Rxe7
{[%clk 0:00:08.7]} 1-0

[Event "*** Titled Tuesday Blitz"]
[Site "Chess.com"]
[Date "2021.03.02"]
[Round "1"]
[White "GregShahade"]
[Black "RaphCamora"]
[Result "0-1"]
[WhiteElo "2645"]
[BlackElo "2362"]
[TimeControl "180+1"]
[EndTime "10:08:24 PST"]
[Termination "RaphCamora won by checkmate"]

1. e4 {[%clk 0:02:55.6]} 1... c5 {[%clk 0:02:59.5]} 2. Nf3 {[%clk 0:02:55.4]}
2... Nc6 {[%clk 0:02:59]} 3. d4 {[%clk 0:02:55.5]} 3... cxd4 {[%clk 0:02:59.1]}
4. Nxd4 {[%clk 0:02:56.4]} 4... Nf6 {[%clk 0:02:58.9]} 5. Nc3 {[%clk 0:02:56.6]}
5... e5 {[%clk 0:02:59]} 6. Ndb5 {[%clk 0:02:57]} 6... d6 {[%clk 0:02:59.3]} 7.
Bg5 {[%clk 0:02:57.6]} 7... a6 {[%clk 0:02:59.2]} 8. Na3 {[%clk 0:02:58.1]} 8...
b5 {[%clk 0:02:59.5]} 9. Nd5 {[%clk 0:02:58.7]} 9... Be7 {[%clk 0:02:59.8]} 10.
Bxf6 {[%clk 0:02:57.2]} 10... Bxf6 {[%clk 0:03:00.7]} 11. c4 {[%clk 0:02:57.6]}
11... Nd4 {[%clk 0:03:00.4]} 12. cxb5 {[%clk 0:02:46]} 12... Be6 {[%clk
0:02:58.6]} 13. Bc4 {[%clk 0:02:41.7]} 13... axb5 {[%clk 0:02:55.8]} 14. Nxb5
{[%clk 0:02:17.5]} 14... Bxd5 {[%clk 0:02:54.8]} 15. exd5 {[%clk 0:02:06.7]}
15... Qa5+ {[%clk 0:02:51.8]} 16. Nc3 {[%clk 0:01:57.9]} 16... Qb4 {[%clk
0:02:45.4]} 17. Qd3 {[%clk 0:01:32.8]} 17... O-O {[%clk 0:02:18.1]} 18. O-O
{[%clk 0:01:25.7]} 18... Rfc8 {[%clk 0:02:17.2]} 19. Bb3 {[%clk 0:01:03.5]}
19... Nxb3 {[%clk 0:02:12.7]} 20. axb3 {[%clk 0:01:03.4]} 20... Qxb3 {[%clk
0:02:12.8]} 21. Rxa8 {[%clk 0:00:53.9]} 21... Rxa8 {[%clk 0:02:12.2]} 22. Qb5
{[%clk 0:00:40.6]} 22... Rb8 {[%clk 0:01:36.9]} 23. Qc6 {[%clk 0:00:30.3]} 23...
Be7 {[%clk 0:01:06]} 24. Ne4 {[%clk 0:00:23]} 24... Rb6 {[%clk 0:00:23.3]} 25.
Qc7 {[%clk 0:00:23.1]} 25... Bf8 {[%clk 0:00:21.5]} 26. Ng5 {[%clk 0:00:22]}
26... Rb7 {[%clk 0:00:21.8]} 27. Qc6 {[%clk 0:00:22.4]} 27... h6 {[%clk
0:00:20.6]} 28. Ne4 {[%clk 0:00:21]} 28... Qxb2 {[%clk 0:00:20.7]} 29. h4 {[%clk
0:00:19.4]} 29... Rb6 {[%clk 0:00:18.9]} 30. Qd7 {[%clk 0:00:16.6]} 30... Qb5
{[%clk 0:00:17.7]} 31. Qg4 {[%clk 0:00:10.6]} 31... Kh8 {[%clk 0:00:15.1]} 32.
Rd1 {[%clk 0:00:10.5]} 32... Qb3 {[%clk 0:00:14.4]} 33. Ng3 {[%clk 0:00:08.7]}
33... Rb4 {[%clk 0:00:13.4]} 34. Qe2 {[%clk 0:00:06.7]} 34... Rxh4 {[%clk
0:00:12.8]} 35. Nf5 {[%clk 0:00:06.1]} 35... Rf4 {[%clk 0:00:12.3]} 36. Ne3
{[%clk 0:00:06.4]} 36... Re4 {[%clk 0:00:12.2]} 37. Qf3 {[%clk 0:00:05.9]} 37...
Rd4 {[%clk 0:00:11.5]} 38. Re1 {[%clk 0:00:03.6]} 38... Rf4 {[%clk 0:00:11.3]}
39. Qg3 {[%clk 0:00:03.7]} 39... g6 {[%clk 0:00:11]} 40. Qh3 {[%clk 0:00:04.1]}
40... Kh7 {[%clk 0:00:08.3]} 41. g3 {[%clk 0:00:04.4]} 41... Rf6 {[%clk
0:00:07.6]} 42. Ng4 {[%clk 0:00:03.4]} 42... Rf5 {[%clk 0:00:07.3]} 43. Qg2
{[%clk 0:00:03.4]} 43... Qf3 {[%clk 0:00:07.2]} 44. Qxf3 {[%clk 0:00:03.6]}
44... Rxf3 {[%clk 0:00:08.1]} 45. Ne3 {[%clk 0:00:04.3]} 45... e4 {[%clk
0:00:07.7]} 46. Rc1 {[%clk 0:00:04.7]} 46... Bg7 {[%clk 0:00:07]} 47. Rc7 {[%clk
0:00:05.2]} 47... Bd4 {[%clk 0:00:06.8]} 48. Kg2 {[%clk 0:00:03.7]} 48... Bxe3
{[%clk 0:00:07]} 49. fxe3 {[%clk 0:00:04.6]} 49... Kg7 {[%clk 0:00:07.2]} 50.
Rd7 {[%clk 0:00:05.3]} 50... Rxe3 {[%clk 0:00:07.7]} 51. Rxd6 {[%clk 0:00:05.9]}
51... Rd3 {[%clk 0:00:08.5]} 52. Kf2 {[%clk 0:00:05.7]} 52... f5 {[%clk
0:00:08.4]} 53. Rd7+ {[%clk 0:00:05.8]} 53... Kf6 {[%clk 0:00:08.5]} 54. Rd6+
{[%clk 0:00:06.4]} 54... Kg5 {[%clk 0:00:08.5]} 55. Rd8 {[%clk 0:00:06.3]} 55...
Kg4 {[%clk 0:00:08.6]} 56. Rd6 {[%clk 0:00:06.3]} 56... g5 {[%clk 0:00:08.9]}
57. Rxh6 {[%clk 0:00:06.4]} 57... Rxd5 {[%clk 0:00:09]} 58. Rg6 {[%clk
0:00:05.6]} 58... Rd2+ {[%clk 0:00:09.1]} 59. Ke3 {[%clk 0:00:06]} 59... Rd3+
{[%clk 0:00:09.6]} 60. Kf2 {[%clk 0:00:05.9]} 60... Rxg3 {[%clk 0:00:10.5]} 61.
Ke2 {[%clk 0:00:05.9]} 61... Rf3 {[%clk 0:00:10.7]} 62. Rg8 {[%clk 0:00:06]}
62... f4 {[%clk 0:00:11.1]} 63. Rg7 {[%clk 0:00:06.1]} 63... e3 {[%clk
0:00:11.3]} 64. Rh7 {[%clk 0:00:02.8]} 64... Rf2+ {[%clk 0:00:11.7]} 65. Ke1
{[%clk 0:00:02.8]} 65... Ra2 {[%clk 0:00:11.1]} 66. Rb7 {[%clk 0:00:02.8]} 66...
Kf3 {[%clk 0:00:11.2]} 67. Rb1 {[%clk 0:00:02.6]} 67... Rh2 {[%clk 0:00:10.6]}
68. Kf1 {[%clk 0:00:03.4]} 68... Rh1# {[%clk 0:00:10.9]} 0-1

[Event "*** Titled Tuesday Blitz"]
[Site "Chess.com"]
[Date "2021.03.02"]
[Round "1"]
[White "NiranjanNavalgund"]
[Black "ShimanovAlex"]
[Result "1-0"]
[WhiteElo "2435"]
[BlackElo "2797"]
[TimeControl "180+1"]
[EndTime "10:08:28 PST"]
[Termination "NiranjanNavalgund won by resignation"]

1. d4 {[%clk 0:02:41.3]} 1... d5 {[%clk 0:02:59.2]} 2. c4 {[%clk 0:02:41.6]}
2... e5 {[%clk 0:02:59.2]} 3. dxe5 {[%clk 0:02:41.3]} 3... Ne7 {[%clk
0:02:59.6]} 4. cxd5 {[%clk 0:02:36.1]} 4... Qxd5 {[%clk 0:02:59.7]} 5. Qxd5
{[%clk 0:02:34]} 5... Nxd5 {[%clk 0:03:00.6]} 6. Nf3 {[%clk 0:02:27.7]} 6... Nc6
{[%clk 0:02:51.8]} 7. Bd2 {[%clk 0:02:18.3]} 7... Bg4 {[%clk 0:02:49.8]} 8. Nc3
{[%clk 0:02:16.7]} 8... Ndb4 {[%clk 0:02:40]} 9. O-O-O {[%clk 0:02:15.3]} 9...
Bxf3 {[%clk 0:02:34.7]} 10. gxf3 {[%clk 0:02:14.6]} 10... Nxe5 {[%clk 0:02:33]}
11. a3 {[%clk 0:02:05.5]} 11... Nbc6 {[%clk 0:02:32.1]} 12. Bh3 {[%clk 0:02:03]}
12... Rd8 {[%clk 0:02:24.7]} 13. Bf4 {[%clk 0:02:00]} 13... Bd6 {[%clk
0:02:23.2]} 14. Bg3 {[%clk 0:01:53.8]} 14... a6 {[%clk 0:02:13.7]} 15. Ne4
{[%clk 0:01:48.6]} 15... Ke7 {[%clk 0:02:00.1]} 16. Nxd6 {[%clk 0:01:40.3]}
16... Rxd6 {[%clk 0:01:57.7]} 17. Rxd6 {[%clk 0:01:38.1]} 17... cxd6 {[%clk
0:01:58.6]} 18. Rd1 {[%clk 0:01:37.2]} 18... f6 {[%clk 0:01:58.3]} 19. f4 {[%clk
0:01:32.3]} 19... Nf7 {[%clk 0:01:56.2]} 20. e3 {[%clk 0:01:30.6]} 20... h5
{[%clk 0:01:53.6]} 21. f3 {[%clk 0:01:26.2]} 21... Rd8 {[%clk 0:01:49.2]} 22.
Bf5 {[%clk 0:01:26]} 22... Rh8 {[%clk 0:01:38]} 23. h4 {[%clk 0:01:24.7]} 23...
Nh6 {[%clk 0:01:34.4]} 24. Bg6 {[%clk 0:01:24.2]} 24... Nf7 {[%clk 0:01:34.6]}
25. Kc2 {[%clk 0:01:21.1]} 25... Nfd8 {[%clk 0:01:30.4]} 26. Be4 {[%clk
0:01:11.5]} 26... Nf7 {[%clk 0:01:22.1]} 27. Bg6 {[%clk 0:01:05.8]} 27... Ncd8
{[%clk 0:01:18]} 28. Kb3 {[%clk 0:01:00.5]} 28... Rh6 {[%clk 0:01:14.8]} 29. Bf5
{[%clk 0:00:56.3]} 29... g6 {[%clk 0:01:13.7]} 30. Bc8 {[%clk 0:00:54]} 30... f5
{[%clk 0:01:12.5]} 31. Rc1 {[%clk 0:00:51.7]} 31... d5 {[%clk 0:01:12.3]} 32.
Be1 {[%clk 0:00:47.2]} 32... Rh7 {[%clk 0:00:52.3]} 33. Bb4+ {[%clk 0:00:45.3]}
33... Ke8 {[%clk 0:00:52.7]} 34. a4 {[%clk 0:00:35.2]} 34... Nh6 {[%clk
0:00:42.3]} 35. Rc5 {[%clk 0:00:31.8]} 35... Ng8 {[%clk 0:00:36.5]} 36. Ba5
{[%clk 0:00:27.3]} 36... Nc6 {[%clk 0:00:34.8]} 37. Bc3 {[%clk 0:00:24.1]} 37...
Re7 {[%clk 0:00:27.1]} 38. Bd2 {[%clk 0:00:21]} 38... d4 {[%clk 0:00:26.4]} 39.
exd4 {[%clk 0:00:17]} 39... Nxd4+ {[%clk 0:00:27.3]} 40. Ka2 {[%clk 0:00:16.9]}
40... Nxf3 {[%clk 0:00:26.6]} 41. Bc3 {[%clk 0:00:17.2]} 41... Nxh4 {[%clk
0:00:19.3]} 42. a5 {[%clk 0:00:16.3]} 42... Ng2 {[%clk 0:00:19.6]} 43. Be5
{[%clk 0:00:14.5]} 43... h4 {[%clk 0:00:19.6]} 44. Rc3 {[%clk 0:00:14.2]} 44...
Nh6 {[%clk 0:00:17.4]} 45. Bf6 {[%clk 0:00:13.5]} 45... Rf7 {[%clk 0:00:16.2]}
46. Bg5 {[%clk 0:00:13.5]} 46... Ng8 {[%clk 0:00:08.9]} 47. Be6 {[%clk
0:00:13.6]} 47... Ne7 {[%clk 0:00:05.9]} 48. Bxf7+ {[%clk 0:00:13.2]} 48... Kxf7
{[%clk 0:00:06.8]} 49. Rc7 {[%clk 0:00:13.8]} 49... h3 {[%clk 0:00:06.7]} 50.
Rxe7+ {[%clk 0:00:14]} 50... Kg8 {[%clk 0:00:07.2]} 51. Rd7 {[%clk 0:00:09.3]}
51... Ne3 {[%clk 0:00:07.4]} 52. Rd2 {[%clk 0:00:09.6]} 52... Nf1 {[%clk
0:00:07.5]} 53. Rf2 {[%clk 0:00:09.9]} 53... Ne3 {[%clk 0:00:06.4]} 54. Rh2
{[%clk 0:00:09.8]} 54... Nc4 {[%clk 0:00:07]} 55. Rxh3 {[%clk 0:00:09.4]} 55...
Nxa5 {[%clk 0:00:07.9]} 56. Bf6 {[%clk 0:00:09.6]} 56... Kf7 {[%clk 0:00:08.2]}
57. Be5 {[%clk 0:00:10.5]} 57... Ke6 {[%clk 0:00:07.2]} 58. Rh7 {[%clk
0:00:10.9]} 58... b5 {[%clk 0:00:07.3]} 59. Rg7 {[%clk 0:00:11.1]} 59... Kd5
{[%clk 0:00:06.5]} 60. Rxg6 {[%clk 0:00:11.6]} 60... Nc4 {[%clk 0:00:07.4]} 61.
Rxa6 {[%clk 0:00:12]} 61... Nxe5 {[%clk 0:00:07.8]} 62. fxe5 {[%clk 0:00:12.5]}
62... Kxe5 {[%clk 0:00:08.7]} 63. Ra5 {[%clk 0:00:13]} 63... f4 {[%clk
0:00:08.8]} 64. Rxb5+ {[%clk 0:00:13.8]} 64... Ke6 {[%clk 0:00:09.3]} 65. Rb8
{[%clk 0:00:14.5]} 65... Ke7 {[%clk 0:00:09.2]} 66. Rb4 {[%clk 0:00:14.8]} 1-0